bitfinex-derivatives/quotes_BTCF0:USTF0_20241226
["timestamp","ask_amount","ask_price","bid_price","bid_amount"]
[1735201289145,0.15057686,96418.0,96407.0,0.15524526]
[1735201289325,0.15057686,96418.0,96417.0,0.041521]
[1735201290039,0.15057686,96418.0,96407.0,0.15524526]
[1735201290240,0.00155592,96443.0,96415.0,0.24782515]
[1735201290436,0.04306592,96443.0,96423.0,0.041519]
[1735201290945,0.00052001,96447.0,96430.0,0.15524526]
[1735201291141,0.00052001,96460.0,96430.0,0.15524526]
[1735201291343,0.15524526,96460.0,96434.0,0.041514]
[1735201291644,0.15524526,96460.0,96417.0,0.24782515]
[1735201291645,0.005,96418.0,96417.0,0.24782515]
[1735201292242,1.5,96421.0,96420.0,0.04152]
[1735201292541,0.00155624,96442.0,96428.0,0.041516]
[1735201292734,0.00155624,96442.0,96430.0,0.15524526]
[1735201293136,0.005,96443.0,96430.0,0.15524526]
[1735201293342,0.041507,96451.0,96431.0,0.041515]
[1735201293538,0.041507,96451.0,96440.0,0.15524526]
[1735201294041,0.041507,96451.0,96431.0,0.041515]
[1735201294237,0.041507,96451.0,96440.0,0.15524526]
[1735201294835,0.1993,96459.0,96440.0,0.15524526]
[1735201295037,0.00155559,96471.0,96449.0,0.15524526]
[1735201295343,0.00155559,96471.0,96441.0,0.2007]
[1735201295641,0.1923,96495.0,96441.0,0.2007]
[1735201295642,0.041485,96501.0,96473.0,0.041497]
[1735201295834,0.11081258,96500.0,96490.0,0.15524526]
[1735201296238,0.1,96500.0,96490.0,0.15524526]
[1735201296743,0.101,96500.0,96480.0,0.15524526]
[1735201296950,0.041491,96489.0,96470.0,0.15524526]
[1735201297643,0.15524526,96490.0,96451.0,0.24626462]
[1735201297949,0.007,96471.0,96451.0,0.24626462]
[1735201298442,0.007,96471.0,96450.0,0.15524526]
[1735201298746,0.041499,96470.0,96446.0,0.041509]
[1735201299044,0.041498,96472.0,96470.0,0.001]
[1735201299449,0.041505,96455.0,96438.0,0.24634341]
[1735201299653,0.041505,96455.0,96439.0,0.001]
[1735201299957,0.041505,96455.0,96446.0,0.001]
[1735201300247,1.5,96454.0,96446.0,0.001]
[1735201300448,0.041508,96447.0,96446.0,0.001]
[1735201301546,0.041508,96447.0,96446.0,0.004]
[1735201301940,0.041508,96447.0,96446.0,0.003]
[1735201303051,0.041508,96447.0,96446.0,0.002]
[1735201303551,0.00052001,96454.0,96446.0,0.002]
[1735201303854,0.1942,96473.0,96453.0,0.041505]
[1735201304539,0.01071621,96481.0,96460.0,0.15524526]
[1735201304736,0.041492,96486.0,96463.0,0.041501]
[1735201304938,0.05241661,96486.0,96470.0,0.15524526]
[1735201305143,0.05241661,96486.0,96465.0,0.0415]
[1735201305349,0.01092461,96486.0,96470.0,0.15524526]
[1735201305556,0.01092461,96486.0,96467.0,0.041499]
[1735201305557,1.5,96498.0,96467.0,0.041499]
[1735201305850,0.05378817,96491.0,96467.0,0.041499]
[1735201306446,0.04304541,96491.0,96461.0,0.001]
[1735201306650,0.04304541,96491.0,96469.0,0.041499]
[1735201306952,0.04149,96490.0,96469.0,0.041499]
[1735201307251,0.15524526,96490.0,96467.0,0.001]
[1735201307453,0.041498,96472.0,96467.0,0.003]
[1735201307646,0.041491,96488.0,96467.0,0.003]
[1735201307848,0.041496,96476.0,96467.0,0.003]
[1735201308144,0.041497,96475.0,96469.0,0.001]
[1735201308651,0.041497,96475.0,96467.0,0.002]
[1735201308855,0.041497,96473.0,96467.0,0.002]
[1735201309244,0.15524526,96490.0,96467.0,0.002]
[1735201309551,0.041499,96469.0,96467.0,0.003]
[1735201309752,0.2133,96468.0,96467.0,0.003]
[1735201310257,0.2133,96468.0,96467.0,0.002]
[1735201310556,0.041502,96462.0,96461.0,0.001]
[1735201311153,0.2143,96468.0,96437.0,0.24626462]
[1735201311355,0.15524526,96460.0,96437.0,0.24626462]
[1735201311652,0.04151,96445.0,96429.0,0.0008]
[1735201311859,0.04151,96445.0,96425.0,0.24626462]
[1735201312344,0.00324409,96444.0,96425.0,0.24626462]
[1735201312545,0.00324409,96443.0,96425.0,0.24626462]
[1735201312745,0.00324411,96442.0,96425.0,0.24626462]
[1735201313042,0.15524526,96450.0,96418.0,0.041521]
[1735201313043,0.00324411,96441.0,96418.0,0.041521]
[1735201313244,0.15524526,96450.0,96438.0,0.00307879]
[1735201313450,0.041511,96442.0,96438.0,0.00407879]
[1735201314253,0.041511,96442.0,96438.0,7.879e-05]
[1735201314447,0.041511,96442.0,96438.0,0.00107879]
[1735201314841,0.041511,96442.0,96438.0,7.879e-05]
[1735201315046,0.00324401,96441.0,96438.0,0.00107879]
[1735201315255,0.00324401,96440.0,96438.0,0.00107879]
[1735201315457,0.00324401,96439.0,96438.0,0.00107879]
[1735201315650,0.00324401,96441.0,96438.0,0.00107879]
[1735201315954,0.00324401,96440.0,96438.0,0.00107879]
[1735201316153,0.00324412,96439.0,96438.0,0.00107879]
[1735201316857,0.00324412,96439.0,96438.0,7.879e-05]
[1735201317056,0.00324412,96439.0,96438.0,0.00107879]
[1735201320157,0.2105,96466.0,96438.0,0.00107879]
[1735201320158,0.01,96535.0,96438.0,0.00107879]
[1735201320355,0.01359945,96462.0,96445.0,0.041509]
[1735201320557,0.1978,96486.0,96440.0,0.15524526]
[1735201320858,0.1978,96486.0,96438.0,0.30107879]
[1735201320859,0.15524526,96470.0,96442.0,0.04151]
[1735201321163,0.00676016,96469.0,96438.0,0.00107879]
[1735201321362,0.0415,96466.0,96445.0,0.041509]
[1735201321655,0.041504,96457.0,96438.0,7.879e-05]
[1735201321874,0.041504,96457.0,96440.0,0.001]
[1735201322457,0.15524526,96470.0,96440.0,0.001]
[1735201322657,0.15524526,96470.0,96455.0,0.24779706]
[1735201322658,0.00677482,96469.0,96455.0,0.24779706]
[1735201322847,0.041504,96457.0,96455.0,0.24779706]
[1735201323671,0.041504,96457.0,96444.0,0.37011693]
[1735201323672,0.041506,96453.0,96452.0,0.30783077]
[1735201324163,0.04828908,96453.0,96452.0,0.30783077]
[1735201324361,0.041506,96453.0,96452.0,0.30783077]
[1735201324753,0.041506,96453.0,96447.0,0.30783077]
[1735201325159,0.043506,96453.0,96447.0,0.30783077]
[1735201325355,0.00677168,96452.0,96447.0,0.30783077]
[1735201325561,0.043506,96453.0,96447.0,0.30783077]
[1735201325562,0.00677168,96451.0,96447.0,0.30783077]
[1735201325861,0.00677168,96450.0,96447.0,0.30783077]
[1735201326063,0.0578081,96453.0,96447.0,0.30783077]
[1735201326267,0.00676993,96452.0,96445.0,0.30783077]
[1735201326454,0.00676993,96451.0,96445.0,0.30783077]
[1735201326761,0.00676993,96450.0,96445.0,0.30783077]
[1735201326961,0.001,96451.0,96445.0,0.30783077]
[1735201327347,0.001,96451.0,96446.0,0.2074]
[1735201327553,0.001,96452.0,96446.0,0.51523077]
[1735201327958,0.041492,96485.0,96446.0,0.81523077]
[1735201328153,0.01003048,96481.0,96460.0,0.15524526]
[1735201328366,0.01003048,96480.0,96469.0,0.041499]
[1735201328562,0.00324332,96479.0,96474.0,0.041496]
[1735201328767,0.00324332,96478.0,96474.0,0.041496]
[1735201328957,0.1,96500.0,96489.0,0.04149]
[1735201329158,0.1,96500.0,96490.0,0.19673426]
[1735201330265,0.1,96500.0,96490.0,0.15524526]
[1735201330466,0.1,96500.0,96480.0,0.15524526]
[1735201330666,0.041491,96489.0,96471.0,0.2008]
[1735201331759,0.043491,96489.0,96471.0,0.2008]
[1735201331971,0.043491,96489.0,96484.0,0.2475366]
[1735201332160,0.041492,96485.0,96484.0,0.2475366]
[1735201332360,0.041495,96478.0,96477.0,0.30942075]
[1735201332561,0.04828302,96478.0,96477.0,0.30942075]
[1735201332854,1.54828302,96478.0,96477.0,0.30942075]
[1735201333255,1.80678802,96478.0,96461.0,0.30942075]
[1735201333464,0.041501,96463.0,96461.0,0.30942075]
[1735201333668,0.00678802,96462.0,96461.0,0.30942075]
[1735201334563,0.041502,96461.0,96454.0,0.00056]
[1735201334767,0.041507,96450.0,96439.0,0.30942075]
[1735201334962,0.041508,96448.0,96439.0,0.30942075]
[1735201335161,0.00678802,96447.0,96439.0,0.30942075]
[1735201335462,0.00678802,96446.0,96439.0,0.30942075]
[1735201335767,0.00678802,96445.0,96433.0,0.00052]
[1735201336067,0.041505,96456.0,96430.0,0.15524526]
[1735201336253,0.041505,96456.0,96428.0,0.30942075]
[1735201336254,0.00676604,96455.0,96440.0,0.15524526]
[1735201336460,0.001,96446.0,96440.0,0.15524526]
[1735201336654,0.001,96446.0,96428.0,0.30942075]
[1735201336880,0.04151,96444.0,96431.0,0.30942075]
[1735201337968,0.04151,96444.0,96438.0,0.00307879]
[1735201338768,0.04251,96444.0,96438.0,0.00307879]
[1735201339475,0.04251,96444.0,96438.0,7.879e-05]
[1735201340966,0.00324413,96443.0,96438.0,7.879e-05]
[1735201341168,0.00324413,96442.0,96438.0,7.879e-05]
[1735201341474,0.00324413,96441.0,96438.0,7.879e-05]
[1735201341676,0.00324413,96440.0,96438.0,7.879e-05]
[1735201342064,0.00324414,96439.0,96438.0,7.879e-05]
[1735201342671,0.00324422,96439.0,96438.0,7.879e-05]
[1735201343069,0.04475622,96439.0,96438.0,7.879e-05]
[1735201343271,0.041516,96429.0,96424.0,0.2019]
[1735201343472,0.001,96440.0,96419.0,0.30942075]
[1735201343473,0.04152,96420.0,96419.0,0.30942075]
[1735201343679,0.041522,96416.0,96415.0,0.30942075]
[1735201343980,0.04476674,96416.0,96415.0,0.12847459]
[1735201344275,0.04476674,96416.0,96415.0,0.11770163]
[1735201344582,0.04476674,96416.0,96407.0,0.3713049]
[1735201344583,0.041525,96408.0,96407.0,0.34491859]
[1735201344785,0.01000227,96408.0,96397.0,0.37528634]
[1735201345076,0.00324474,96407.0,96397.0,0.37528634]
[1735201345274,0.00324474,96406.0,96398.0,0.2026]
[1735201345464,1.541521,96419.0,96398.0,0.2026]
[1735201345665,0.00324521,96418.0,96398.0,0.2026]
[1735201345870,0.00324521,96417.0,96398.0,0.2026]
[1735201346084,0.00624521,96416.0,96398.0,0.2026]
[1735201346376,0.00324521,96415.0,96400.0,0.101]
[1735201346578,0.003,96416.0,96400.0,0.101]
[1735201346786,0.00324508,96415.0,96400.0,0.101]
[1735201346974,0.003,96416.0,96400.0,0.101]
[1735201347168,0.041524,96411.0,96400.0,0.101]
[1735201349569,0.041524,96411.0,96400.0,0.1]
[1735201349871,0.041524,96411.0,96400.0,0.101]
[1735201350779,0.01685428,96420.0,96400.0,0.101]
[1735201350967,0.041521,96418.0,96400.0,0.101]
[1735201351170,0.041522,96416.0,96400.0,0.101]
[1735201351571,0.00324513,96415.0,96400.0,0.101]
[1735201351780,0.041523,96413.0,96400.0,0.101]
[1735201351971,0.041524,96411.0,96400.0,0.101]
[1735201352170,0.041524,96411.0,96400.0,0.1]
[1735201352371,0.041524,96411.0,96400.0,0.101]
[1735201353987,0.15524526,96430.0,96400.0,0.101]
[1735201353988,0.15524526,96450.0,96405.0,0.041526]
[1735201354180,0.041516,96430.0,96405.0,0.041526]
[1735201354480,0.04476077,96429.0,96405.0,0.041526]
[1735201354783,0.041516,96429.0,96405.0,0.041526]
[1735201355376,0.05829623,96429.0,96419.0,0.15524526]
[1735201355683,0.05829623,96429.0,96410.0,0.15524526]
[1735201355867,0.041517,96427.0,96410.0,0.15524526]
[1735201356077,0.041517,96427.0,96406.0,0.041526]
[1735201356271,0.041517,96427.0,96405.0,0.002]
[1735201356272,1.5,96438.0,96405.0,0.002]
[1735201356478,0.041519,96422.0,96400.0,0.25524526]
[1735201356772,0.041528,96401.0,96400.0,0.1]
[1735201357472,1.541528,96401.0,96400.0,0.1]
[1735201357675,1.541528,96401.0,96400.0,0.101]
[1735201358582,1.541528,96401.0,96400.0,0.1]
[1735201359483,1.54477378,96401.0,96400.0,0.1]
[1735201360080,1.54477378,96401.0,96400.0,0.101]
[1735201360584,1.54477378,96401.0,96400.0,0.09123511]
[1735201360885,1.54477378,96401.0,96400.0,0.03769556]
[1735201361287,1.55150257,96401.0,96400.0,0.03769556]
[1735201361479,0.041538,96379.0,96371.0,0.2144]
[1735201361673,0.15524526,96381.0,96370.0,8.74e-05]
[1735201361874,0.04154,96374.0,96370.0,8.74e-05]
[1735201362179,0.00324649,96373.0,96370.0,8.74e-05]
[1735201362382,0.00324649,96372.0,96370.0,8.74e-05]
[1735201362579,0.00155698,96399.0,96363.0,0.2042]
[1735201362580,0.00324649,96371.0,96363.0,0.2042]
[1735201362771,0.041542,96369.0,96363.0,0.2042]
[1735201363175,1.6968,96379.0,96363.0,0.2042]
[1735201363388,0.041543,96368.0,96363.0,0.2042]
[1735201363589,0.00324663,96367.0,96363.0,0.2042]
[1735201363776,0.041544,96365.0,96363.0,0.2042]
[1735201364587,0.041544,96365.0,96356.0,0.2035]
[1735201364786,0.15524526,96370.0,96356.0,0.2035]
[1735201364978,0.041545,96363.0,96356.0,0.2035]
[1735201365282,0.041545,96361.0,96356.0,0.2035]
[1735201366478,0.041545,96361.0,96356.0,0.2045]
[1735201367387,0.041545,96361.0,96356.0,0.2065]
[1735201368581,0.041545,96361.0,96356.0,0.2055]
[1735201368781,0.041545,96361.0,96356.0,0.2075]
[1735201370278,0.00324684,96360.0,96356.0,0.2065]
[1735201370478,0.00324684,96359.0,96356.0,0.2065]
[1735201370690,0.00324684,96358.0,96356.0,0.2065]
[1735201370882,0.00324684,96357.0,96356.0,0.2065]
[1735201371275,0.00324684,96357.0,96356.0,0.003]
[1735201371475,0.00324686,96357.0,96356.0,0.002]
[1735201371692,0.00324686,96357.0,96356.0,0.003]
[1735201372283,0.00424686,96357.0,96356.0,0.001]
[1735201372682,0.01999386,96358.0,96356.0,0.001]
[1735201372986,0.01170939,96357.0,96356.0,0.001]
[1735201373397,0.041552,96347.0,96331.0,0.4221]
[1735201373690,0.04147149,96347.0,96331.0,0.4221]
[1735201374288,0.041552,96345.0,96331.0,0.4221]
[1735201375085,0.041552,96345.0,96331.0,0.4241]
[1735201375489,0.00519599,96344.0,96331.0,0.4241]
[1735201375688,0.041554,96342.0,96331.0,0.4241]
[1735201376587,0.041554,96342.0,96331.0,0.4281]
[1735201377392,0.041557,96335.0,96331.0,0.4281]
[1735201377591,0.041553,96344.0,96331.0,0.4281]
[1735201377799,0.041545,96361.0,96331.0,0.7261]
[1735201377800,0.041546,96361.0,96331.0,0.7261]
[1735201377990,0.01187999,96360.0,96340.0,0.15524526]
[1735201378192,0.15028064,96360.0,96340.0,0.10353929]
[1735201378398,0.041547,96357.0,96331.0,0.4287]
[1735201378697,0.00519535,96356.0,96331.0,0.4241]
[1735201378887,0.04674335,96356.0,96331.0,0.4271]
[1735201379087,0.041549,96354.0,96331.0,0.4271]
[1735201379284,0.14509329,96341.0,96331.0,0.4241]
[1735201379599,0.14509329,96341.0,96340.0,0.001]
[1735201379783,0.041554,96341.0,96340.0,0.001]
[1735201380594,0.02110815,96361.0,96340.0,0.001]
[1735201380797,0.041551,96349.0,96340.0,0.001]
[1735201380988,0.10353929,96350.0,96331.0,0.4221]
[1735201381185,0.041554,96342.0,96331.0,0.4251]
[1735201381388,0.041556,96337.0,96331.0,0.4251]
[1735201381588,0.041556,96337.0,96331.0,0.4221]
[1735201381788,0.10353929,96360.0,96340.0,0.001]
[1735201381789,0.041552,96346.0,96340.0,0.001]
[1735201382294,0.041552,96346.0,96331.0,0.4251]
[1735201382503,0.041553,96345.0,96331.0,0.4251]
[1735201382697,0.10353929,96360.0,96331.0,0.4251]
[1735201382698,0.10353929,96350.0,96331.0,0.4251]
[1735201382902,1.60353929,96350.0,96340.0,0.001]
[1735201383103,0.041554,96342.0,96340.0,0.001]
[1735201384497,0.041554,96342.0,96331.0,0.4251]
[1735201384702,0.00324747,96341.0,96331.0,0.4251]
[1735201384894,0.00324747,96340.0,96331.0,0.4251]
[1735201385203,0.00324747,96339.0,96331.0,0.4221]
[1735201385399,0.00324746,96338.0,96331.0,0.4221]
[1735201385702,0.00324746,96337.0,96331.0,0.4251]
[1735201386016,0.00324746,96336.0,96331.0,0.4251]
[1735201386189,0.00324746,96335.0,96331.0,0.4251]
[1735201386389,0.00324746,96334.0,96331.0,0.4251]
[1735201386590,0.00324746,96333.0,96331.0,0.4251]
[1735201386797,0.00324746,96332.0,96331.0,0.4261]
[1735201386996,0.00324746,96332.0,96331.0,0.2132]
[1735201387197,0.00324746,96332.0,96331.0,0.2102]
[1735201387504,0.00324746,96332.0,96331.0,0.2132]
[1735201388197,0.00324746,96332.0,96331.0,0.2122]
[1735201388389,0.00324746,96332.0,96331.0,0.5122]
[1735201388707,0.00155767,96360.0,96358.0,0.041546]
[1735201388895,0.19175926,96383.0,96363.0,0.041544]
[1735201389092,0.15022326,96383.0,96363.0,0.041544]
[1735201389491,0.041538,96379.0,96363.0,0.041544]
[1735201389698,0.02061265,96382.0,96359.0,0.41576]
[1735201389898,0.041542,96369.0,96363.0,0.18609385]
[1735201390204,0.00672981,96368.0,96363.0,0.18609385]
[1735201390402,0.041544,96364.0,96363.0,0.18609385]
[1735201390601,0.04827567,96364.0,96363.0,0.18609385]
[1735201390795,0.04827567,96364.0,96363.0,0.1724439]
[1735201391203,1.54827567,96364.0,96341.0,0.3092953]
[1735201391391,0.10353929,96360.0,96341.0,0.3092953]
[1735201391595,0.10353929,96351.0,96341.0,0.3092953]
[1735201391907,0.041553,96343.0,96341.0,0.3092953]
[1735201392207,0.041553,96343.0,96334.0,0.2065]
[1735201392403,0.041553,96343.0,96341.0,0.004]
[1735201393597,0.002,96351.0,96341.0,0.004]
[1735201393803,0.00673049,96350.0,96340.0,0.041554]
[1735201394103,0.003,96351.0,96340.0,0.15534487]
[1735201394305,0.003,96351.0,96334.0,0.2065]
[1735201394499,0.003,96343.0,96341.0,0.041554]
[1735201394903,0.0899103,96359.0,96343.0,0.041553]
[1735201395210,0.041546,96359.0,96345.0,0.24855584]
[1735201396095,0.01846313,96364.0,96345.0,0.24855584]
[1735201396304,0.041549,96353.0,96345.0,0.24855584]
[1735201396604,0.041549,96353.0,96346.0,0.24855584]
[1735201397607,0.15534487,96370.0,96346.0,0.24855584]
[1735201397816,1.5,96369.0,96346.0,0.24955584]
[1735201397999,0.041543,96366.0,96346.0,0.24955584]
[1735201398196,0.041543,96366.0,96334.0,0.57826047]
[1735201398197,0.041553,96343.0,96342.0,0.06495776]
[1735201398401,0.041553,96343.0,96342.0,0.04595776]
[1735201398596,0.04828294,96343.0,96342.0,0.04595776]
[1735201398803,0.041553,96343.0,96342.0,0.04595776]
[1735201399202,0.0482822,96343.0,96342.0,0.04595776]
[1735201399412,0.04828216,96343.0,96342.0,0.04595776]
[1735201399608,0.041553,96343.0,96342.0,0.04595776]
[1735201399908,0.041554,96342.0,96334.0,0.2065]
[1735201400208,0.041557,96335.0,96322.0,0.00056]
[1735201400406,0.041557,96335.0,96319.0,0.3092953]
[1735201400407,0.041557,96335.0,96323.0,0.2116]
[1735201400610,0.00324769,96334.0,96323.0,0.2116]
[1735201400801,0.0032477,96333.0,96323.0,0.2116]
[1735201401000,0.0032477,96332.0,96323.0,0.2116]
[1735201401200,0.15534487,96340.0,96323.0,0.2116]
[1735201401201,0.0032477,96331.0,96323.0,0.2116]
[1735201401501,0.0032477,96330.0,96323.0,0.2116]
[1735201401708,0.0032477,96329.0,96323.0,0.2116]
[1735201402012,0.0032477,96328.0,96323.0,0.2176]
[1735201402214,0.0032477,96327.0,96323.0,0.2176]
[1735201402403,0.0032477,96326.0,96323.0,0.2176]
[1735201402606,0.0032477,96325.0,96323.0,0.2176]
[1735201402805,0.0032477,96324.0,96323.0,0.2206]
[1735201403304,0.00324769,96324.0,96323.0,0.2206]
[1735201403907,0.00324769,96324.0,96323.0,0.2146]
[1735201404107,0.00424769,96324.0,96323.0,0.2206]
[1735201406213,0.001,96324.0,96323.0,0.2206]
[1735201407013,0.00424758,96324.0,96323.0,0.2206]
[1735201407801,0.001,96324.0,96323.0,0.2206]
[1735201408201,0.001,96324.0,96323.0,0.5206]
[1735201408404,0.0899103,96345.0,96344.0,0.041553]
[1735201408920,0.09315788,96345.0,96337.0,0.041556]
[1735201409216,0.09315788,96345.0,96338.0,0.041555]
[1735201409407,0.09315788,96345.0,96339.0,0.2053]
[1735201409614,0.00624758,96345.0,96339.0,0.2053]
[1735201409825,0.00824758,96345.0,96339.0,0.2053]
[1735201410313,0.00524758,96345.0,96339.0,0.2053]
[1735201410520,0.00424758,96345.0,96339.0,0.246854]
[1735201410816,0.00424758,96345.0,96340.0,0.041554]
[1735201411015,0.00424758,96345.0,96339.0,0.2053]
[1735201411416,0.00324758,96344.0,96339.0,0.2053]
[1735201411717,0.00324758,96344.0,96342.0,0.041553]
[1735201412013,0.00324758,96344.0,96343.0,0.2037]
[1735201412712,0.0899103,96370.0,96343.0,0.5037]
[1735201413018,0.0899103,96370.0,96345.0,0.2070007]
[1735201413221,0.0899103,96370.0,96369.0,0.041542]
[1735201413510,0.11972446,96375.0,96369.0,0.041542]
[1735201413710,0.11972446,96376.0,96370.0,0.1987]
[1735201414619,0.04154,96373.0,96370.0,0.1987]
[1735201414814,0.041543,96367.0,96350.0,0.10350035]
[1735201415118,0.041543,96367.0,96360.0,0.10350035]
[1735201415608,0.041544,96366.0,96360.0,0.41279565]
[1735201415806,0.006,96370.0,96360.0,0.3092953]
[1735201416012,0.041545,96362.0,96360.0,0.3092953]
[1735201416606,0.006,96367.0,96354.0,0.2]
[1735201416918,0.041548,96356.0,96354.0,0.2]
[1735201417214,0.041548,96356.0,96350.0,0.10350035]
[1735201417418,0.041548,96356.0,96351.0,0.2]
[1735201418311,0.008,96362.0,96351.0,0.2]
[1735201418515,0.041549,96353.0,96351.0,0.2]
[1735201419620,0.042549,96353.0,96351.0,0.2]
[1735201420114,0.043549,96353.0,96351.0,0.2]
[1735201422523,0.043549,96353.0,96346.0,0.041551]
[1735201422821,0.041551,96349.0,96340.0,0.4093]
[1735201423814,0.041551,96349.0,96346.0,0.001]
[1735201424719,0.041547,96357.0,96348.0,0.041551]
[1735201425024,0.041547,96357.0,96349.0,0.04155]
[1735201425813,0.01928826,96361.0,96340.0,0.451854]
[1735201426017,0.041549,96353.0,96340.0,0.451854]
[1735201426219,0.041549,96353.0,96340.0,0.4093]
[1735201426418,0.041549,96353.0,96341.0,0.041554]
[1735201426619,0.04155,96352.0,96341.0,0.041554]
[1735201426814,0.002,96357.0,96340.0,0.40982]
[1735201426815,0.2146,96356.0,96340.0,0.00052]
[1735201427021,0.21084697,96355.0,96333.0,0.3092953]
[1735201427330,0.041556,96337.0,96333.0,0.3092953]
[1735201427825,0.041556,96336.0,96333.0,0.3092953]
[1735201428129,0.041556,96336.0,96323.0,0.5182953]
[1735201428626,0.041556,96336.0,96333.0,0.003]
[1735201428923,0.041556,96336.0,96333.0,0.004]
[1735201429125,0.041556,96336.0,96333.0,0.001]
[1735201429325,0.042556,96336.0,96333.0,0.001]
[1735201429826,0.041556,96336.0,96333.0,0.004]
[1735201430627,0.041557,96335.0,96333.0,0.004]
[1735201431717,0.00324763,96334.0,96333.0,0.001]
[1735201431920,0.00324763,96334.0,96333.0,0.004]
[1735201432219,0.041557,96335.0,96333.0,0.004]
[1735201432422,0.01860902,96336.0,96333.0,0.001]
[1735201432621,0.041553,96343.0,96333.0,0.001]
[1735201432823,0.00324764,96342.0,96322.0,0.041562]
[1735201433020,0.00324764,96341.0,96333.0,0.001]
[1735201433328,0.00324764,96340.0,96333.0,0.001]
[1735201433632,0.00324763,96339.0,96333.0,0.001]
[1735201433922,0.041553,96343.0,96333.0,0.001]
[1735201433923,0.00324763,96338.0,96333.0,0.001]
[1735201434126,0.00324763,96337.0,96333.0,0.001]
[1735201434326,0.041553,96343.0,96322.0,0.041562]
[1735201434527,0.00324763,96342.0,96333.0,0.001]
[1735201434730,0.00324763,96341.0,96333.0,0.001]
[1735201435027,0.00324763,96340.0,96333.0,0.001]
[1735201435229,0.00324763,96339.0,96333.0,0.001]
[1735201435429,0.00324763,96338.0,96322.0,0.041562]
[1735201435625,0.041553,96343.0,96322.0,0.041562]
[1735201435626,0.00324763,96337.0,96333.0,0.001]
[1735201435832,0.00324773,96336.0,96310.0,0.0155]
[1735201436033,0.15525614,96320.0,96310.0,0.0155]
[1735201436227,0.00324773,96319.0,96310.0,0.0155]
[1735201436527,0.19754773,96319.0,96310.0,0.0155]
[1735201436736,0.00324773,96318.0,96310.0,0.0155]
[1735201437132,0.1943,96319.0,96310.0,0.0155]
[1735201437828,0.21349443,96319.0,96310.0,0.0155]
[1735201438031,0.21349443,96319.0,96291.0,0.3092953]
[1735201438032,0.00324822,96318.0,96291.0,0.3092953]
[1735201438228,0.041569,96306.0,96291.0,0.3092953]
[1735201438428,0.041571,96302.0,96290.0,0.3092953]
[1735201439531,0.041571,96302.0,96300.0,0.203]
[1735201439734,0.042571,96302.0,96300.0,0.209]
[1735201440336,0.2132,96301.0,96300.0,0.209]
[1735201440532,0.2132,96301.0,96267.0,0.37176047]
[1735201440533,0.037,96290.0,96267.0,0.37176047]
[1735201440723,0.0416,96235.0,96234.0,0.26991105]
[1735201440926,0.0416,96235.0,96218.0,0.0155]
[1735201440927,0.041602,96229.0,96218.0,0.0155]
[1735201441129,0.10367417,96238.0,96218.0,0.0155]
[1735201441332,0.041602,96231.0,96218.0,0.0155]
[1735201441646,0.04485345,96230.0,96229.0,0.62316003]
[1735201441953,0.041605,96222.0,96218.0,0.0155]
[1735201442135,0.041605,96224.0,96219.0,0.62316003]
[1735201442735,0.30596104,96230.0,96219.0,0.62316003]
[1735201442936,0.11972446,96221.0,96220.0,0.3116]
[1735201443242,0.11972446,96221.0,96219.0,0.62316003]
[1735201443445,0.17878755,96228.0,96220.0,0.3116]
[1735201443631,0.041603,96227.0,96219.0,0.62716003]
[1735201444228,0.17878755,96228.0,96223.0,0.3116]
[1735201444735,0.07458732,96226.0,96219.0,0.62716003]
[1735201444923,0.07458732,96226.0,96219.0,1.22716003]
[1735201445125,0.07458732,96226.0,96225.0,0.12431802]
[1735201445438,0.07458732,96227.0,96219.0,0.5319829]
[1735201445631,0.14824263,96228.0,96219.0,1.1319829]
[1735201445830,0.14824263,96228.0,96219.0,0.83616622]
[1735201446229,0.14824263,96228.0,96219.0,0.83316622]
[1735201446429,0.14824263,96228.0,96225.0,0.001]
[1735201446627,0.14824263,96231.0,96225.0,0.001]
[1735201446926,0.14824263,96231.0,96225.0,0.38251327]
[1735201447335,0.14824263,96231.0,96219.0,0.23316622]
[1735201447535,0.00064,96260.0,96253.0,0.041592]
[1735201447737,0.20947524,96270.0,96245.0,0.15573778]
[1735201447928,0.20947524,96270.0,96269.0,0.041585]
[1735201448135,0.20947524,96270.0,96261.0,0.041589]
[1735201448331,0.20947524,96270.0,96260.0,0.34255892]
[1735201448636,0.23940028,96280.0,96260.0,0.34255892]
[1735201448637,0.23940028,96280.0,96274.0,0.041583]
[1735201448837,0.041582,96277.0,96212.0,0.041609]
[1735201449138,0.15573778,96230.0,96174.0,0.041626]
[1735201449342,0.15573778,96230.0,96202.0,0.041614]
[1735201449540,0.15573778,96220.0,96202.0,0.041614]
[1735201449846,0.15573778,96220.0,96202.0,0.22843514]
[1735201450140,0.15573778,96220.0,96219.0,0.005]
[1735201450342,0.15573778,96229.0,96219.0,0.005]
[1735201450547,0.27413365,96250.0,96224.0,0.041604]
[1735201450735,0.11839587,96250.0,96230.0,0.15573778]
[1735201451043,0.11839587,96250.0,96231.0,0.041601]
[1735201451431,0.11839587,96250.0,96231.0,0.22842214]
[1735201451634,0.11839587,96250.0,96244.0,0.041596]
[1735201452036,0.15573778,96270.0,96244.0,0.22841714]
[1735201452341,0.005,96250.0,96244.0,0.22841714]
[1735201452540,0.006,96250.0,96244.0,0.22841714]
[1735201452841,0.008,96250.0,96244.0,0.22941714]
[1735201453041,0.049594,96250.0,96244.0,0.001]
[1735201453240,0.007,96250.0,96244.0,0.001]
[1735201453439,0.041595,96245.0,96244.0,0.001]
[1735201454239,0.041595,96245.0,96221.0,0.2032]
[1735201454440,0.041595,96245.0,96224.0,0.041604]
[1735201454938,0.042595,96245.0,96224.0,0.22842514]
[1735201455336,0.001,96245.0,96224.0,0.18682114]
[1735201455538,0.001,96245.0,96224.0,0.19782114]
[1735201456247,0.041598,96239.0,96224.0,0.19782114]
[1735201458136,0.041598,96239.0,96224.0,0.19582114]
[1735201458543,0.041598,96239.0,96224.0,0.19382114]
[1735201458755,0.15573778,96240.0,96224.0,0.18882114]